Cogmind - Beta 16.1 @@@ ROGUE MODE // 2026.06.21 @ 20:16:44 Player: Lazz Result: Destroyed by S-43 Plague with Heavy Machine Gun Performance ------------- Evolutions (7) 3500 Regions Visited (16) 3200 Robots Destroyed (58) 290 Value Destroyed (1591) 1591 Prototype IDs (13) 260 Alien Tech Used (0) 0 Bonus (300) 300 TOTAL SCORE: 9141 Bonus ------- Met Data Miner 300 Cogmind --------- Core Integrity 0/1300 Matter 174/300 Energy 98/100 System Corruption 6% Temperature Cool (0) Movement Core (50) Location -3/Research Parts ------- > --- POWER (2) -------- (None) > --- PROPULSION (6) --- (None) > --- UTILITY (9) ------ Improved Signal Interpreter Hacking Suite Advanced Hacking Suite > --- WEAPON (4) ------- (None) > --- INVENTORY (5) ---- Biometal Leg Advanced Cooling System Terrain Scan Processor Hypervelocity Gauss Cannon Heavy Missile Launcher Peak State ------------ > --- POWER ------------ Micro Nuclear Core > --- PROPULSION ------- Cooled Cesium-ion Thruster Field Propulsion Drive Nuclear Pulse Array > --- UTILITY ---------- Enhanced Optical Array Improved Sensor Array Improved Signal Interpreter Hacking Suite Hacking Suite Hacking Suite Advanced Hacking Suite Improved System Shield Advanced System Shield > --- WEAPON ----------- Gauss Cannon Lance > --- INVENTORY -------- Advanced Cooling System Hypervelocity Gauss Cannon Heavy Missile Launcher Heavy Pick [Rating: 77] Favorites ----------- Power Light Nuclear Core Engine Light Ion Engine Power Core Light Nuclear Core Propulsion Improved VTOL Module Treads Light Treads Wheel Compact Wheel Flight Unit Improved VTOL Module Utility Hacking Suite Device Improved Sensor Array Storage Large Storage Unit Processor Advanced Targeting Computer Hackware Hacking Suite Protection Light Armor Plating Weapon Light Cannon Energy Cannon Long-range Proton Cannon Ballistic Gun Assault Rifle Ballistic Cannon Light Cannon Launcher Heavy Missile Launcher Piercing Weapon Heavy Pick Build | -11 -10 -9 -9 -8 -7 -7 -7 -6 -6 -5 -4 -4 -4 -4 -4 -3 ------- Run | Yrd Mat Mat Min Mat Fac Low Dat Pro Fac Fac Fac Ext Cet Arc Hub Res Slots Evolved 14 | . . 2 . 2 2 . . . 2 2 2 . . . . 2 Power 1 | . . . . . . . . . 1 . . . . . . . Propulsion 4 | . . . . 2 2 . . . . . . . . . . . Utility 7 | . . 2 . . . . . . 1 2 2 . . . . . Weapon 2 | . . . . . . . . . . . . . . . . 2 Parts Attached 70 | 6 4 4 . 8 7 2 . 2 12 14 2 . . . 1 8 Power 10 | 1 . 1 . 1 2 . . . 3 . . . . . . 2 Engine 5 | 1 . . . 1 . . . . 1 . . . . . . 2 Core 5 | . . 1 . . 2 . . . 2 . . . . . . . Reactor . | . . . . . . . . . . . . . . . . . Propulsion 20 | 2 . 1 . 3 2 . . . 5 3 . . . . . 4 Treads 2 | 2 . . . . . . . . . . . . . . . . Leg . | . . . . . . . . . . . . . . . . . Wheel 4 | . . . . . . . . . . . . . . . . 4 Hover . | . . . . . . . . . . . . . . . . . Flight 14 | . . 1 . 3 2 . . . 5 3 . . . . . . Utility 24 | 1 2 2 . 1 2 . . 2 3 8 2 . . . . 1 Device 6 | . . . . 1 . . . . 1 3 . . . . . 1 Storage 2 | 1 1 . . . . . . . . . . . . . . . Processor 9 | . . 1 . . 2 . . 2 2 2 . . . . . . Hackware 6 | . . 1 . . . . . . . 3 2 . . . . . Protection 1 | . 1 . . . . . . . . . . . . . . . Artifact . | . . . . . . . . . . . . . . . . . Weapon 16 | 2 2 . . 3 1 2 . . 1 3 . . . . 1 1 Energy Gun . | . . . . . . . . . . . . . . . . . Energy Cannon 1 | . . . . . . . . . . . . . . . . 1 Ballistic Gun 2 | 2 . . . . . . . . . . . . . . . . Ballistic Cannon 7 | . 2 . . 2 . . . . . 2 . . . . 1 . Launcher 3 | . . . . 1 . 1 . . 1 . . . . . . . Special Weapon . | . . . . . . . . . . . . . . . . . Impact Weapon . | . . . . . . . . . . . . . . . . . Slashing Weapon . | . . . . . . . . . . . . . . . . . Piercing Weapon 3 | . . . . . 1 1 . . . 1 . . . . . . Special Melee Weapon . | . . . . . . . . . . . . . . . . . Unidentified Prototypes 1 | . . 1 . . . . . . . . . . . . . . Parts Lost 38 | . . . . 3 1 . . 2 4 8 . 2 2 2 1 13 Power 7 | . . . . 1 . . . . 2 1 . . 1 . . 2 Propulsion 15 | . . . . . 1 . . . 1 6 . . 1 2 . 4 Utility 10 | . . . . . . . . 2 . 1 . 1 . . . 6 Weapon 6 | . . . . 2 . . . . 1 . . 1 . . 1 1 Highest Loss Streak 12 | . . . . 2 1 . . 1 4 3 . 2 2 4 1 12 To Critical Strikes . | . . . . . . . . . . . . . . . . . Average Backups 7 | . 2 9 15 14 5 4 5 5 4 4 4 5 5 5 4 4 Power . | . . . 1 1 . 1 1 1 . . . . . . . . Propulsion . | . . 1 4 1 . . . . . . . . . . . . Utility 2 | . . 1 4 6 2 1 2 2 1 1 1 2 2 2 2 1 Weapon 3 | . 2 5 5 5 2 2 2 2 2 3 3 3 3 3 2 2 Tool/Special . | . . . . . . . . . . . . . . . . . Unused Backups 17 | . . 2 . 3 5 1 . . 1 2 . . . . . 3 Power 1 | . . 1 . . . . . . . . . . . . . . Propulsion 1 | . . . . . . . . . . . . . . . . 1 Utility 10 | . . . . 1 3 1 . . 1 2 . . . . . 2 Weapon 5 | . . 1 . 2 2 . . . . . . . . . . . Tool/Special . | . . . . . . . . . . . . . . . . . Average Slot Usage (%) 85 | . 95 87 100 98 96 92 92 86 88 81 74 73 66 57 45 45 Engine 2 | . 14 7 . 2 . . . . 2 . . . . . . 2 Core 5 | . . 3 11 6 6 7 7 7 7 8 5 5 4 . . . Treads 6 | . 28 22 22 . . . . . . . . . . . . . Flight 19 | . . . . 35 44 38 38 38 34 24 15 15 14 10 . . Device 3 | . . . . 7 7 7 7 3 2 9 5 2 . . . . Storage 4 | . 14 11 11 9 . . . . . . . . . . . . Processor 11 | . . 3 11 9 14 15 15 12 20 17 10 10 10 10 10 7 Hackware 10 | . . 6 11 9 7 7 7 7 6 8 27 31 31 31 31 23 Protection 3 | . 10 11 11 1 . . . . . . . . . . . . Ballistic Gun 1 | . 21 . . . . . . . . . . . . . . . Ballistic Cannon 9 | . 6 22 22 16 7 8 7 2 3 5 5 2 . . . . Piercing Weapon 2 | . . . . . 4 1 7 7 5 3 5 5 5 5 3 2 Peak Build Rating 77 | 6 7 20 19 37 46 42 42 46 61 70 77 77 70 60 48 61 Average Rating 37 | 4 6 11 18 33 44 40 42 41 49 61 75 73 68 55 42 37 On Entrance 39 | . 6 7 18 19 31 40 42 42 46 61 69 77 70 60 42 36 Avg Prop Armor Cover (%) 2 | . . . . . 3 2 2 2 1 6 . . . . . . Naked Turns . | . . . . . . . . . . . . . . . . . Heaviest Build 34 | 12 32 34 34 34 26 16 12 16 23 31 17 17 9 3 3 25 Greatest Support 52 | 40 40 40 40 20 30 21 21 26 38 38 29 29 29 23 3 52 Greatest Overweight (x) 1 | . . 1 . 1 . . . . . 1 . . . . . . Average Overweight (x) . | . . . . 1 . . . . . . . . . . . . Largest Inventory Capacity 15 | 8 15 15 15 15 15 5 5 5 5 5 5 5 5 5 5 5 Average Capacity 9 | 7 12 15 15 15 5 5 5 5 5 5 5 5 5 5 5 5 Most Carried 15 | 1 6 15 15 15 14 5 5 5 5 5 5 5 5 5 5 5 Average Carried 7 | . 2 9 15 14 5 4 5 4 4 4 4 5 5 5 4 4 Final Capacity 15 | 8 15 15 15 15 5 5 5 5 5 5 5 5 5 5 5 5 Final Carried 15 | 1 6 15 15 15 5 5 5 5 4 5 5 5 5 5 5 5 Class Distribution -------------------- 43% | Mutant 21% | Sprinter 12% | Scout 10% | Wizard-Mutant 3% | Wizard-Scout 3% | Hacker-Scout Dominant Class ---------------- Mutant | -10/Materials Mutant | -9/Materials Mutant | -9/Mines Mutant | -8/Materials Sprinter | -7/Factory Sprinter | -7/Lower Caves Sprinter | -7/Data Miner Sprinter | -6/Proximity Caves Sprinter | -6/Factory Scout | -5/Factory Wizard-Scout | -4/Factory Wizard-Scout | -4/Extension Wizard-Mutant | -4/Cetus Wizard-Mutant | -4/Archives Wizard-Mutant | -4/Hub_04(d) Wizard-Mutant | -3/Research Resources | -11 -10 -9 -9 -8 -7 -7 -7 -6 -6 -5 -4 -4 -4 -4 -4 -3 ----------- Run | Yrd Mat Mat Min Mat Fac Low Dat Pro Fac Fac Fac Ext Cet Arc Hub Res Matter Collected 1746 | 205 10 220 183 207 175 139 . 210 . 235 . . . . . 162 Remotely . | . . . . . . . . . . . . . . . . . Salvage Created 1393 | . 10 192 248 170 155 45 . 88 18 307 . . . . . 160 Parts 104 | . 3 15 10 23 5 6 . 3 2 26 . . . . . 11 Haulers Intercepted 1 | . . . . 1 . . . . . . . . . . . . Recyclers Shooed . | . . . . . . . . . . . . . . . . . Parts Field Recycled . | . . . . . . . . . . . . . . . . . Retrieved Matter . | . . . . . . . . . . . . . . . . . Parts Self-Destructed 7 | . . . . . . 5 . 2 . . . . . . . . Prevented . | . . . . . . . . . . . . . . . . . Parts Restored . | . . . . . . . . . . . . . . . . . Kills | -11 -10 -9 -9 -8 -7 -7 -7 -6 -6 -5 -4 -4 -4 -4 -4 -3 ------- Run | Yrd Mat Mat Min Mat Fac Low Dat Pro Fac Fac Fac Ext Cet Arc Hub Res Combat Hostiles Destroyed 43 | . . 5 5 15 3 4 . 4 1 6 . . . . . . Melee 2 | . . . . . . . . . . 2 . . . . . . Cannons 25 | . . 5 5 7 3 1 . . . 4 . . . . . . AOE 16 | . . . . 8 . 3 . 4 1 . . . . . . . Classes Destroyed 12 | . 1 3 1 3 1 . . 1 . 2 . . . . . . Worker 2 | . . 1 . . . . . . . 1 . . . . . . Builder 2 | . . . . . . . . . . 1 . . . . . 1 Tunneler 3 | . . . . . 1 . . . . 1 . . . . . 1 Hauler 1 | . . . . 1 . . . . . . . . . . . . Recycler 3 | . . . 1 . 1 . . . . . . . . . . 1 Operator 4 | . 1 1 . . . . . . 1 1 . . . . . . Drone 1 | . . . . . . . . 1 . . . . . . . . Swarmer 21 | . . . . 12 2 4 . 1 1 1 . . . . . . Grunt 10 | . . 4 3 1 1 . . 1 . . . . . . . . Sentry 7 | . . 1 2 1 . . . 1 . 2 . . . . . . Hunter 2 | . . . . 1 . . . . . 1 . . . . . . Programmer 2 | . . . . . . . . . . 2 . . . . . . Best Kill Streak 7 | . 1 3 4 7 3 4 . 4 1 2 . . . . . 2 Combat Bots Only 7 | . . 2 3 7 3 4 . 4 1 2 . . . . . . Max Kills in Single Turn 3 | . 1 1 1 3 1 3 . 3 1 1 . . . . . 1 Gunslinging . | . . . . . . . . . . . . . . . . . Exploded 3 | . . . . 3 . 3 . 3 1 . . . . . . . Melee 1 | . . . . . . . . . . 1 . . . . . . Uniques/NPCs Destroyed . | . . . . . . . . . . . . . . . . . Combat | -11 -10 -9 -9 -8 -7 -7 -7 -6 -6 -5 -4 -4 -4 -4 -4 -3 -------- Run | Yrd Mat Mat Min Mat Fac Low Dat Pro Fac Fac Fac Ext Cet Arc Hub Res Hostile Shots Fired 475 | . . 9 9 82 24 7 . 30 61 41 2 26 17 8 8 151 Missed 220 | . . 4 3 27 11 4 . 19 38 16 1 13 10 4 2 68 Hits 255 | . . 5 6 55 13 3 . 11 23 25 1 13 7 4 6 83 Projectile 255 | . . 5 6 55 13 3 . 11 23 25 1 13 7 4 6 83 Critical Strikes 10 | . . . . 1 2 . . . . 2 . 2 . . . 3 Damage Taken 5003 | . . 58 84 837 202 41 . 165 322 633 20 362 200 108 118 1853 Core 2290 | . . 11 31 375 46 . . 47 64 32 . 136 90 49 94 1315 Absorbed by Shields 43 | . . . . . . . . . . . . . . . . 43 Ignored by Resistances 12 | . . . . . . . . . . 12 . . . . . . Regen/Repaired (Parts) 26 | . . . . . 26 . . . . . . . . . . . Core Remaining (%) 82 | 100 100 . 89 31 . . . 86 92 96 . . . . 67 . Volleys Fired 97 | . 1 11 10 33 10 6 . 5 3 14 . . . . 2 2 Largest 2 | . 2 2 2 2 2 2 . 1 2 2 . . . . 1 1 Hottest 87 | . 40 60 60 70 70 69 . 39 70 87 . . . . 51 81 Shots Fired 172 | . 2 23 20 60 20 7 . 5 5 26 . . . . 2 2 Gun 2 | . 2 . . . . . . . . . . . . . . . Cannon 158 | . . 23 20 55 20 6 . . 4 26 . . . . 2 2 Launcher 12 | . . . . 5 . 1 . 5 1 . . . . . . . Special . | . . . . . . . . . . . . . . . . . Kinetic 158 | . 2 23 20 55 20 6 . . 4 26 . . . . 2 . Thermal . | . . . . . . . . . . . . . . . . . Explosive 12 | . . . . 5 . 1 . 5 1 . . . . . . . Electromagnetic 2 | . . . . . . . . . . . . . . . . 2 Robot Hit Streak 25 | . 2 8 17 25 3 4 . 1 4 8 . . . . . . Robot Miss Streak 4 | . . 2 . 2 1 2 . 2 . 1 . . . . 2 4 Penetration Max . | . . . . . . . . . . . . . . . . . Secondary Targets . | . . . . . . . . . . . . . . . . . Shots Hit Robots 130 | . 2 15 15 41 15 4 . 3 3 26 1 . . 1 1 3 Core Hits 81 | . 2 8 9 19 7 5 . 11 4 14 . . . . . 2 Critical Kills . | . . . . . . . . . . . . . . . . . Critical Parts Destroyed . | . . . . . . . . . . . . . . . . . Critical Strikes 6 | . . . 1 2 1 . . . . 2 . . . . . . Blast 5 | . . . 1 2 1 . . . . 1 . . . . . . Impale 1 | . . . . . . . . . . 1 . . . . . . Melee Attacks 77 | . . . . . 3 2 . 3 32 18 5 . 5 5 1 3 Impact . | . . . . . . . . . . . . . . . . . Slashing . | . . . . . . . . . . . . . . . . . Piercing 77 | . . . . . 3 2 . 3 32 18 5 . 5 5 1 3 Sneak Attacks 11 | . . . . . 2 . . . . 3 1 . . 1 1 3 Combat Hostiles . | . . . . . . . . . . . . . . . . . Follow-up Attacks . | . . . . . . . . . . . . . . . . . Damage Inflicted 4474 | . 24 284 277 1251 370 306 . 300 231 902 83 . . 71 94 281 Guns 24 | . 24 . . . . . . . . . . . . . . . Cannons 2222 | . . 284 277 696 236 53 . . 46 593 . . . . . 37 Explosions 1243 | . . . . 555 . 253 . 250 185 . . . . . . . Melee 955 | . . . . . 134 . . 50 . 309 83 . . 71 90 218 Ramming 30 | . . . . . . . . . . . . . . . 4 26 Kinetic 2209 | . 24 284 277 696 236 53 . . 46 593 . . . . . . Thermal . | . . . . . . . . . . . . . . . . . Explosive 1243 | . . . . 555 . 253 . 250 185 . . . . . . . Electromagnetic 37 | . . . . . . . . . . . . . . . . 37 Impact . | . . . . . . . . . . . . . . . . . Slashing . | . . . . . . . . . . . . . . . . . Piercing 955 | . . . . . 134 . . 50 . 309 83 . . 71 90 218 Highest Corruption 6 | . . 1 1 . . . . . . 3 . . . . . 6 Average Corruption 1 | . . 1 1 . . . . . . 2 . . . . . 3 Corruption Purged . | . . . . . . . . . . . . . . . . . Corruption Blocked . | . . . . . . . . . . . . . . . . . Effects 14 | . . 2 2 . . . . . . 5 . . . . . 5 Message Errors 2 | . . . . . . . . . . 2 . . . . . . Matter Fused 2 | . . . 1 . . . . . . . . . . . . 1 Heat Flow Errors 2 | . . . . . . . . . . 1 . . . . . 1 Energy Discharges 2 | . . . . . . . . . . 2 . . . . . . Data Loss (minor) 2 | . . 1 . . . . . . . . . . . . . 1 Data Loss (major) 2 | . . . . . . . . . . . . . . . . 2 Misfires 1 | . . 1 . . . . . . . . . . . . . . Alerts 1 | . . . 1 . . . . . . . . . . . . . Overload Shots . | . . . . . . . . . . . . . . . . . Overflow Damage 370 | . . 5 . 86 . 15 . 23 17 30 43 . . 26 40 85 Projectiles 65 | . . 5 . 38 . 15 . . . . . . . . . 7 Explosions 78 | . . . . 48 . . . 13 17 . . . . . . . Melee 227 | . . . . . . . . 10 . 30 43 . . 26 40 78 Knockbacks 15 | . . 3 1 7 4 . . . . . . . . . . . Impact . | . . . . . . . . . . . . . . . . . Kinetic 15 | . . 3 1 7 4 . . . . . . . . . . . Secondary . | . . . . . . . . . . . . . . . . . Self-Inflicted Damage 87 | . . . . 29 . . . 29 16 . . . . . 2 11 Shots 4 | . . . . 2 . . . 1 1 . . . . . . . Rammed 9 | . . . . . . . . . . . . . . . 2 7 Targets Rammed 9 | . . . . . . . . . . . . . . . 2 7 Kicked . | . . . . . . . . . . . . . . . . . Crushed . | . . . . . . . . . . . . . . . . . Highest Temperature 366 | . . 15 54 13 52 . . 6 225 203 . 366 . . . 185 Average Temperature 63 | . . 7 24 5 35 . . 4 85 73 . 203 . . . 55 Received Heat Transfer 908 | . . 33 39 108 54 . . 30 36 45 . 416 27 18 12 90 Effects 3 | . . . . . . . . . . 3 . . . . . . Interference 3 | . . . . . . . . . . 3 . . . . . . Siege Activations . | . . . . . . . . . . . . . . . . . Martial Activations . | . . . . . . . . . . . . . . . . . Shielding Activations . | . . . . . . . . . . . . . . . . . Robots Disrupted . | . . . . . . . . . . . . . . . . . Combat Hostiles . | . . . . . . . . . . . . . . . . . Robots Corrupted . | . . . . . . . . . . . . . . . . . Combat Hostiles . | . . . . . . . . . . . . . . . . . Parts Fried . | . . . . . . . . . . . . . . . . . Impact Corruptions . | . . . . . . . . . . . . . . . . . Robots Melted . | . . . . . . . . . . . . . . . . . Combat Hostiles . | . . . . . . . . . . . . . . . . . Parts Melted . | . . . . . . . . . . . . . . . . . Heat Transferred . | . . . . . . . . . . . . . . . . . Parts Sabotaged . | . . . . . . . . . . . . . . . . . Parts Stolen . | . . . . . . . . . . . . . . . . . Parts Stripped . | . . . . . . . . . . . . . . . . . Power Chain Reactions . | . . . . . . . . . . . . . . . . . Alert | -11 -10 -9 -9 -8 -7 -7 -7 -6 -6 -5 -4 -4 -4 -4 -4 -3 ------- Run | Yrd Mat Mat Min Mat Fac Low Dat Pro Fac Fac Fac Ext Cet Arc Hub Res Maximum Alert Level 1 | . . . . 1 . . . . 1 . . . . . . . Low Security (%) 90 | 100 100 100 100 71 100 . . . 50 100 100 100 100 100 100 100 Level 1 9 | . . . . 28 . . . . 49 . . . . . . . Level 2 . | . . . . . . . . . . . . . . . . . Level 3 . | . . . . . . . . . . . . . . . . . Level 4 . | . . . . . . . . . . . . . . . . . Level 5 . | . . . . . . . . . . . . . . . . . High Security . | . . . . . . . . . . . . . . . . . Max Security . | . . . . . . . . . . . . . . . . . Peak Influence 369 | . 6 90 75 321 137 . . . 369 155 12 . 15 30 . 80 Initial 162 | . . . 5 17 137 . . . 162 104 . . . . . . Average 76 | . . 27 18 134 85 . . . 224 116 2 . 2 8 . 3 Influence Increases 2176 | . 11 155 115 553 76 90 . 80 539 346 28 . 15 30 . 138 Destroy 0b10 Robot/C 840 | . . 100 100 300 60 80 . 60 20 120 . . . . . . Destroy 0b10 Robot/NC 80 | . 5 10 5 5 10 . . 5 5 20 . . . . . 15 Destroy Leader 162 | . . 30 10 72 . 10 . . . 40 . . . . . . Successful Hack 66 | . 6 . . . 1 . . . 7 12 22 . . . . 18 Disable Machine 120 | . . . . 45 . . . . 15 15 . . 15 30 . . Destroy Structure 113 | . . . . 41 5 . . . 27 34 6 . . . . . Advance Influence 150 | . . . . . . . . . 150 . . . . . . . Partial Spotted 75 | . . . . . . . . . . 75 . . . . . . Lose Combat Pursuer 570 | . . 15 . 90 . . . 15 315 30 . . . . . 105 Influence Decreases 2096 | . 11 141 84 296 305 108 55 60 346 559 26 2 15 30 . 58 Entered New Map 404 | . . . 9 28 165 28 55 . 8 109 . 2 . . . . Time Decay 1278 | . 11 141 75 238 130 80 . 50 198 264 26 . 10 10 . 45 Search Patrol Dispatched 100 | . . . . . . . . . 100 . . . . . . . Lost Part 208 | . . . . 30 10 . . 10 40 80 . . 5 20 . 13 Purge Threat 106 | . . . . . . . . . . 106 . . . . . . Squads Dispatched 26 | . . 2 . 6 . . . . 4 6 1 . . . 1 6 Investigation 5 | . . 1 . . . . . . 1 2 1 . . . . . Extermination 3 | . . . . . . . . . . 1 . . . . . 2 Reinforcement 13 | . . 1 . 1 . . . . 3 3 . . . . 1 4 Assault . | . . . . . . . . . . . . . . . . . Garrison 5 | . . . . 5 . . . . . . . . . . . . Intercept . | . . . . . . . . . . . . . . . . . Searches Triggered 1 | . . . . . . . . . 1 . . . . . . . Data Miner Redirects 2 | . . . . . . . . . . 1 1 . . . . . Construction Impeded 1 | . . . . . . . . . . . . . . . . 1 Haulers Reinforced . | . . . . . . . . . . . . . . . . . Active Scanning Responses . | . . . . . . . . . . . . . . . . . Cargo Convoy Interrupts . | . . . . . . . . . . . . . . . . . Stealth | -11 -10 -9 -9 -8 -7 -7 -7 -6 -6 -5 -4 -4 -4 -4 -4 -3 --------- Run | Yrd Mat Mat Min Mat Fac Low Dat Pro Fac Fac Fac Ext Cet Arc Hub Res Distress Signals 8 | . . . . 1 . . . . 2 . . . 1 . . 4 Communications Jammed . | . . . . . . . . . . . . . . . . . Distress Signals . | . . . . . . . . . . . . . . . . . Times Spotted 130 | . 1 7 5 27 3 4 . 5 26 9 1 5 5 4 5 23 Peak Tracking Total 14 | . 1 3 3 8 3 4 . 3 13 3 1 5 5 3 4 14 Tactical Retreats 16 | . . 1 . 3 . . . 1 7 2 . . . . . 2 Traps | -11 -10 -9 -9 -8 -7 -7 -7 -6 -6 -5 -4 -4 -4 -4 -4 -3 ------- Run | Yrd Mat Mat Min Mat Fac Low Dat Pro Fac Fac Fac Ext Cet Arc Hub Res Traps Triggered 2 | . . . . . 1 . . . . . . . . . . 1 Indirectly . | . . . . . . . . . . . . . . . . . Trap Hack Attempts . | . . . . . . . . . . . . . . . . . Triggered . | . . . . . . . . . . . . . . . . . Disarmed . | . . . . . . . . . . . . . . . . . Reprogrammed . | . . . . . . . . . . . . . . . . . Reused . | . . . . . . . . . . . . . . . . . Traps Extracted . | . . . . . . . . . . . . . . . . . Installed . | . . . . . . . . . . . . . . . . . Triggered . | . . . . . . . . . . . . . . . . . Machines | -11 -10 -9 -9 -8 -7 -7 -7 -6 -6 -5 -4 -4 -4 -4 -4 -3 ---------- Run | Yrd Mat Mat Min Mat Fac Low Dat Pro Fac Fac Fac Ext Cet Arc Hub Res Machines Disabled 8 | . . . . 3 . . . . 1 1 . . 1 2 . . Max in Single Turn 1 | . . . . 1 . . . . 1 1 . . 1 1 . . Machines Repaired . | . . . . . . . . . . . . . . . . . Machines Dismantled . | . . . . . . . . . . . . . . . . . Machines Sabotaged . | . . . . . . . . . . . . . . . . . Overloaded Fab Kills . | . . . . . . . . . . . . . . . . . Hacking | -11 -10 -9 -9 -8 -7 -7 -7 -6 -6 -5 -4 -4 -4 -4 -4 -3 --------- Run | Yrd Mat Mat Min Mat Fac Low Dat Pro Fac Fac Fac Ext Cet Arc Hub Res Machines Accessed 35 | . 4 2 . 1 4 1 4 . 6 6 4 . 1 . . 2 Terminals 18 | . 4 1 . 1 . . . . 4 3 2 . 1 . . 2 Fabricators 4 | . . . . . 1 . . . . 2 1 . . . . . Repair Stations 1 | . . . . . 1 . . . . . . . . . . . Recycling Units 1 | . . . . . 1 . . . . . . . . . . . Scanalyzers 5 | . . 1 . . 1 . . . 1 1 1 . . . . . Garrison Access 1 | . . . . . . . . . 1 . . . . . . . Total Hacks 110 | . 9 4 . 2 10 1 29 . 13 19 16 . 2 . . 5 Successful 73 | . 2 3 . 1 8 1 29 . 4 13 8 . 1 . . 3 Failed 36 | . 7 1 . 1 2 . . . 9 5 8 . 1 . . 2 Catastrophic 8 | . 1 1 . 1 . . . . 2 1 2 . . . . . Database Lockouts 1 | . . . . . . . . . . 1 . . . . . . Manual 29 | . 6 1 . 1 . . . . 8 7 5 . . . . 1 Terminals 44 | . 9 1 . 2 . . . . 10 9 6 . 2 . . 5 Fabricators 9 | . . . . . 2 . . . . 4 3 . . . . . Repair Stations 3 | . . . . . 3 . . . . . . . . . . . Recycling Units 3 | . . . . . 3 . . . . . . . . . . . Scanalyzers 20 | . . 3 . . 2 . . . 2 6 7 . . . . . Garrison Access 1 | . . . . . . . . . 1 . . . . . . . Terminal Hacks 46 | . 2 . . 1 . 1 29 . 2 5 2 . 1 . . 3 Record 13 | . . . . . . . 11 . . . 1 . . . . 1 Part Schematic 10 | . . . . . . . 10 . . . . . . . . . Robot Schematic 5 | . . . . . . . 5 . . . . . . . . . Robot Analysis 2 | . 2 . . . . . . . . . . . . . . . Prototype ID Bank 4 | . . . . . . . 3 . 1 . . . . . . . Open Door 2 | . . . . . . 1 . . . . . . 1 . . . Open DSF 1 | . . . . . . . . . . 1 . . . . . . Level Access Points 1 | . . . . . . . . . . 1 . . . . . . Branch Access Points 1 | . . . . . . . . . . . . . . . . 1 Terminal Index 3 | . . . . . . . . . 1 . 1 . . . . 1 Unreport Threat 2 | . . . . . . . . . . 2 . . . . . . Zone Layout 2 | . . . . 1 . . . . . 1 . . . . . . Fabricator Hacks 6 | . . . . . 1 . . . . 3 2 . . . . . Load Schematic 4 | . . . . . 1 . . . . 2 1 . . . . . Build 2 | . . . . . . . . . . 1 1 . . . . . Repair Station Hacks 2 | . . . . . 2 . . . . . . . . . . . Scan Component 1 | . . . . . 1 . . . . . . . . . . . Repair 1 | . . . . . 1 . . . . . . . . . . . Recycling Unit Hacks 3 | . . . . . 3 . . . . . . . . . . . Process 1 | . . . . . 1 . . . . . . . . . . . Retrieve Matter 2 | . . . . . 2 . . . . . . . . . . . Scanalyzer 15 | . . 3 . . 2 . . . 1 5 4 . . . . . Insert Component 2 | . . 1 . . . . . . . . 1 . . . . . Analyze 2 | . . 1 . . . . . . . . 1 . . . . . Retrieve Study 11 | . . 1 . . 2 . . . 1 5 2 . . . . . Garrison Access Hacks . | . . . . . . . . . . . . . . . . . Unauthorized Hacks 1 | . . . . . . . . . 1 . . . . . . . Terminals 1 | . . . . . . . . . 1 . . . . . . . Botnet 1 | . . . . . . . . . 1 . . . . . . . Fabricators . | . . . . . . . . . . . . . . . . . Repair Stations . | . . . . . . . . . . . . . . . . . Recycling Units . | . . . . . . . . . . . . . . . . . Scanalyzers . | . . . . . . . . . . . . . . . . . Garrison Access . | . . . . . . . . . . . . . . . . . Data Cores Recovered 2 | . 1 . . . . . . . 1 . . . . . . . Used 2 | . 1 . . . . . . . 1 . . . . . . . Hacking Detections 27 | . 4 2 . 1 3 . . . 6 5 4 . 1 . . 1 Full Trace Events 5 | . . 1 . . . . . . 1 2 1 . . . . . Feedback Events 1 | . . 1 . . . . . . . . . . . . . . Corruption 1 | . . 1 . . . . . . . . . . . . . . Feedback Blocked . | . . . . . . . . . . . . . . . . . Robot Schematics Acquired 5 | . . . . . . . 5 . . . . . . . . . Robots Built . | . . . . . . . . . . . . . . . . . Authchips . | . . . . . . . . . . . . . . . . . Time . | . . . . . . . . . . . . . . . . . Total Robot Build Rating . | . . . . . . . . . . . . . . . . . Part Schematics Acquired 12 | . . 1 . . . . 10 . . . 1 . . . . . Parts Built 1 | . . . . . . . . . . 1 . . . . . . Authchips . | . . . . . . . . . . . . . . . . . Time 126 | . . . . . . . . . . 76 50 . . . . . Total Part Build Rating 5 | . . . . . . . . . . 5 . . . . . . Part Studies Acquired 11 | . . 1 . . 2 . . . 1 5 2 . . . . . Parts Repaired 1 | . . . . . 1 . . . . . . . . . . . Time 38 | . . . . . 38 . . . . . . . . . . . Parts Recycled . | . . . . . . . . . . . . . . . . . Recycled Matter 20 | . . . . . 20 . . . . . . . . . . . Retrieved Matter 20 | . . . . . 20 . . . . . . . . . . . Retrieved Components . | . . . . . . . . . . . . . . . . . Parts Scanalyzed 2 | . . 1 . . . . . . . . 1 . . . . . Part Schematics Acquired 2 | . . 1 . . . . . . . . 1 . . . . . Parts Damaged . | . . . . . . . . . . . . . . . . . Bothacking | -11 -10 -9 -9 -8 -7 -7 -7 -6 -6 -5 -4 -4 -4 -4 -4 -3 ------------ Run | Yrd Mat Mat Min Mat Fac Low Dat Pro Fac Fac Fac Ext Cet Arc Hub Res Used RIF Installer . | . . . . . . . . . . . . . . . . . Robots Hacked . | . . . . . . . . . . . . . . . . . Non-combat . | . . . . . . . . . . . . . . . . . Combat . | . . . . . . . . . . . . . . . . . Robot Hacks Applied . | . . . . . . . . . . . . . . . . . Relay Couplers Released . | . . . . . . . . . . . . . . . . . Fabnet Peak Effective % . | . . . . . . . . . . . . . . . . . Robots Rewired . | . . . . . . . . . . . . . . . . . Allies Hacked . | . . . . . . . . . . . . . . . . . Hacks Repelled . | . . . . . . . . . . . . . . . . . Allies | -11 -10 -9 -9 -8 -7 -7 -7 -6 -6 -5 -4 -4 -4 -4 -4 -3 -------- Run | Yrd Mat Mat Min Mat Fac Low Dat Pro Fac Fac Fac Ext Cet Arc Hub Res Total Allies . | . . . . . . . . . . . . . . . . . Largest Group . | . . . . . . . . . . . . . . . . . Highest-Rated Group . | . . . . . . . . . . . . . . . . . Highest-Rated Ally . | . . . . . . . . . . . . . . . . . Total Orders . | . . . . . . . . . . . . . . . . . Ally Attacks . | . . . . . . . . . . . . . . . . . Total Damage . | . . . . . . . . . . . . . . . . . Kills . | . . . . . . . . . . . . . . . . . Allies Corrupted . | . . . . . . . . . . . . . . . . . Allies Melted . | . . . . . . . . . . . . . . . . . Intel | -11 -10 -9 -9 -8 -7 -7 -7 -6 -6 -5 -4 -4 -4 -4 -4 -3 ------- Run | Yrd Mat Mat Min Mat Fac Low Dat Pro Fac Fac Fac Ext Cet Arc Hub Res Active Infowar (turns) 2560 | . . . . 470 268 175 23 128 408 562 94 71 57 26 32 246 Optics 1539 | . . . . . . . . 43 408 562 94 71 57 26 32 246 Sensors 1873 | . . . . 470 268 175 23 85 164 560 94 34 . . . . Terrain 64 | . . . . . . . . . . 64 . . . . . . Robot Analysis Total 2 | . 2 . . . . . . . . . . . . . . . Derelict Logs Recovered 5 | . . . 1 . . 1 . 3 . . . . . . . . Drone Launches . | . . . . . . . . . . . . . . . . . Drone Recoveries . | . . . . . . . . . . . . . . . . . Exploration | -11 -10 -9 -9 -8 -7 -7 -7 -6 -6 -5 -4 -4 -4 -4 -4 -3 ------------- Run | Yrd Mat Mat Min Mat Fac Low Dat Pro Fac Fac Fac Ext Cet Arc Hub Res Turns Passed 3960 | 70 282 529 303 527 268 175 23 164 408 581 94 71 57 26 32 350 Spaces Moved 4945 | 41 167 208 165 325 491 492 88 434 741 803 179 208 100 31 37 435 Core 283 | 4 . . . . . . . . . . . . . 14 37 228 Treads 577 | 37 167 208 165 . . . . . . . . . . . . . Legs . | . . . . . . . . . . . . . . . . . Wheels 207 | . . . . . . . . . . . . . . . . 207 Hover . | . . . . . . . . . . . . . . . . . Flight 3878 | . . . . 325 491 492 88 434 741 803 179 208 100 17 . . Fastest Speed 20 | 50 160 160 160 96 20 26 26 23 21 24 34 34 34 39 50 50 Average Speed 52 | 149 160 160 160 96 26 28 26 25 25 34 34 34 35 43 50 69 Slowest Speed 240 | 160 160 240 160 96 29 29 26 26 29 117 34 34 39 50 50 100 Overloaded Moves . | . . . . . . . . . . . . . . . . . Propulsion Burnouts . | . . . . . . . . . . . . . . . . . Robots Hopped 16 | . . . . . 2 . . . 4 1 . 5 3 1 . . Potential Cave-ins 7 | . . . . . . . . . 7 . . . . . . . Cave-ins Triggered . | . . . . . . . . . . . . . . . . . Exploration Rate (%) 36 | 3 36 20 42 26 14 67 70 64 26 30 7 49 72 71 5 25 Regions Visited 16 Branch Regions 8 Pre-discovered Areas 1 | . . . . . . . 1 . . . . . . . . . Known Exits Taken 12 | . . . 1 . 1 1 1 1 1 1 1 1 1 1 1 . Unknown Exits Taken 4 | 1 1 1 . 1 . . . . . . . . . . . . Scrap Searched 8 | . . . . . . 4 . 4 . . . . . . . . Spaces Dug 58 | . . . . 12 1 2 . 1 27 12 3 . . . . . Terrain Destroyed 160 | . . . . 40 5 15 . 41 39 17 3 . . . . . Melee 46 | . . . . . 1 2 . 1 27 12 3 . . . . . Projectile 11 | . . . . 2 4 . . . . 5 . . . . . . AOE 103 | . . . . 38 . 13 . 40 12 . . . . . . . Terrain Rammed . | . . . . . . . . . . . . . . . . . Walls Destroyed . | . . . . . . . . . . . . . . . . . Machines Disabled . | . . . . . . . . . . . . . . . . . Actions | -11 -10 -9 -9 -8 -7 -7 -7 -6 -6 -5 -4 -4 -4 -4 -4 -3 --------- Run | Yrd Mat Mat Min Mat Fac Low Dat Pro Fac Fac Fac Ext Cet Arc Hub Res Total 5950 | 47 179 382 188 480 606 515 87 471 882 1046 203 202 110 34 46 472 Wait 652 | . 1 143 8 92 80 10 . 26 87 173 17 . 9 . 3 3 Move 4900 | 40 166 207 164 324 486 491 87 433 733 800 178 198 94 28 36 435 Hop 13 | . . . . . 2 . . . 3 1 . 4 2 1 . . Pick Up 49 | 1 4 11 3 9 8 1 . 1 1 7 1 . . . . 2 Fast Attach 41 | 6 3 3 . 1 1 . . 1 7 10 1 . . . . 8 Attach 22 | . . 1 . 6 5 . . 1 2 4 1 . . . 1 1 Detach 8 | . 1 1 . 2 . . . . 1 2 . . . . 1 . Swap 29 | . 1 1 . 6 3 3 . 1 8 6 . . . . . . Drop 44 | . 2 4 3 7 8 2 . . 5 11 . . . . . 2 Fire 97 | . 1 11 10 33 10 6 . 5 3 14 . . . . 2 2 Melee 77 | . . . . . 3 2 . 3 32 18 5 . 5 5 1 3 Ram 9 | . . . . . . . . . . . . . . . 2 7 Kick . | . . . . . . . . . . . . . . . . . Crush . | . . . . . . . . . . . . . . . . . Escape Stasis 9 | . . . . . . . . . . . . . . . . 9 Rewire . | . . . . . . . . . . . . . . . . . Trap . | . . . . . . . . . . . . . . . . . Miscellaneous . | . . . . . . . . . . . . . . . . . Route ------- -11/Scrapyard -10/Materials (discovered 2 exits: *Mat / [*Min]) -9/Materials -9/Mines -8/Materials -7/Factory -7/Lower Caves (discovered 2 exits: [*Low] / *Dat) -7/Data Miner -6/Proximity Caves -6/Factory -5/Factory (discovered 6 exits: *Fac x4 / *Upp x2) -4/Factory -4/Extension (discovered 2 exits: *Res / *Cet) -4/Cetus -4/Archives -4/Hub_04(d) -3/Research (discovered 3 exits: Arm / Qua x2) History --------- Turn | Location | Event 3 | -11/Scrapyard | Discovered new exit (range 15) 71 | -11/Scrapyard | Entered Materials 234 | -10/Materials | Discovered new exit (range 9) 315 | -10/Materials | Build established: Mutant 348 | -10/Materials | Discovered new exit (range 3) 353 | -10/Materials | Entered another Materials area 353 | -9/Materials | Evolved 2 slots: Utility x2 763 | -9/Materials | Discovered new exit (range 13) 882 | -9/Materials | Entered Mines 951 | -9/Mines | A weapon hastily lodged in a ceiling crevice suddenly fell to the ground 1039 | -9/Mines | Identified exit to Materials 1185 | -9/Mines | Entered Materials 1185 | -8/Materials | Evolved 2 slots: Propulsion x2 1284 | -8/Materials | Garrison activated, responded to threat 1585 | -8/Materials | Destroyed 7 combat bots 1606 | -8/Materials | Garrison activated, responded to threat 1689 | -8/Materials | Discovered new exit (range 15) 1692 | -8/Materials | Core integrity fell below 50% 1712 | -8/Materials | Entered Factory 1712 | -7/Factory | Evolved 2 slots: Propulsion x2 1836 | -7/Factory | Repaired Imp. Grenade Launcher 1977 | -7/Factory | Discovered new exit (range 5) 1978 | -7/Factory | Identified exit to Lower Caves 1980 | -7/Factory | Entered Lower Caves 1981 | -7/Lower Caves | Encountered a Warlord checkpoint 2022 | -7/Lower Caves | Build established: Sprinter 2050 | -7/Lower Caves | Entered a destroyed Warlord outpost 2062 | -7/Lower Caves | Learned Factory emergency access door positions 2150 | -7/Lower Caves | A Derelict revealed a hidden shortcut to meet someone special 2150 | -7/Lower Caves | Discovered new exit (range 8) 2155 | -7/Lower Caves | Identified exit to Data Miner 2155 | -7/Lower Caves | Entered Data Miner 2155 | -7/Data Miner | Discovered new exit (range 6) 2160 | -7/Data Miner | Met Data Miner 2166 | -7/Data Miner | Learned location of Section 7 (-2) 2166 | -7/Data Miner | Acquired the access code to Warlord's prototype stash 2171 | -7/Data Miner | Received God Mode back door access code from Data Miner 2178 | -7/Data Miner | Identified exit to Proximity Caves 2178 | -7/Data Miner | Entered Proximity Caves 2187 | -6/Proximity Caves | Spotted B-75 Beast 2207 | -6/Proximity Caves | Learned Factory stockpile data 2218 | -6/Proximity Caves | Learned 4 Factory zone layouts 2250 | -6/Proximity Caves | Attracted the attention of an 0b10 checkpoint 2254 | -6/Proximity Caves | Learned location of 1 exit from Factory 2308 | -6/Proximity Caves | Spotter reported a threat 2337 | -6/Proximity Caves | Discovered new exit (range 6) 2342 | -6/Proximity Caves | Identified exit to Factory 2342 | -6/Proximity Caves | Entered Factory 2342 | -6/Factory | Evolved 2 slots: Power x1, Utility x1 2343 | -6/Factory | Identified exit to Factory 2585 | -6/Factory | Lost 4 parts (2p1n1w) 2692 | -6/Factory | Search patrols dispatched 2750 | -6/Factory | Entered another Factory area 2750 | -5/Factory | Evolved 2 slots: Utility x2 2823 | -5/Factory | Discovered new exit (range 15) 2845 | -5/Factory | Identified exit to Upper Caves 2883 | -5/Factory | Spotted B-75 Beast 2908 | -5/Factory | Discovered exit to Upper Caves (range 8) 2996 | -5/Factory | Incoming investigation squad redirected 3051 | -5/Factory | Fabricated Cld. Cesium-ion Thruster (x1) 3107 | -5/Factory | Assembled infested Garrison Access 3117 | -5/Factory | Lost 3 parts (1p2n) 3136 | -5/Factory | Central database locked down 3312 | -5/Factory | Identified exit to Factory 3331 | -5/Factory | Entered another Factory area 3331 | -4/Factory | Evolved 2 slots: Utility x2 3398 | -4/Factory | Discovered new exit (range 20) 3424 | -4/Factory | Incoming investigation squad redirected 3425 | -4/Factory | Identified exit to Extension 3425 | -4/Factory | Entered Extension 3451 | -4/Extension | Spotted B-86 Titan 3455 | -4/Extension | Spotted B-86 Titan 3489 | -4/Extension | Discovered new exit (range 21) 3489 | -4/Extension | Discovered new exit (range 18) 3495 | -4/Extension | Identified exit to Cetus 3496 | -4/Extension | Entered Cetus 3500 | -4/Cetus | Spotted Cetus Guard 3501 | -4/Cetus | Spotted Cetus Guard 3501 | -4/Cetus | Spotted Cetus Guard 3502 | -4/Cetus | Spotted Cetus Guard 3545 | -4/Cetus | Discovered new exit (range 22) 3552 | -4/Cetus | Identified exit to Archives 3553 | -4/Cetus | Entered Archives 3568 | -4/Archives | Unable to access archive contents 3572 | -4/Archives | Discovered new exit (range 15) 3579 | -4/Archives | Identified exit to Hub_04(d) 3579 | -4/Archives | Entered Hub_04(d) 3588 | -4/Hub_04(d) | Discovered new exit (range 10) 3592 | -4/Hub_04(d) | Identified exit to Research 3603 | -4/Hub_04(d) | Lost 4 parts (1p3n) 3611 | -4/Hub_04(d) | Entered Research 3611 | -3/Research | Evolved 2 slots: Weapon x2 3781 | -3/Research | Build established: Wizard-Mutant 3849 | -3/Research | Spotted B-86 Titan 3853 | -3/Research | Identified exit to Armory 3853 | -3/Research | Identified exit to Quarantine 3877 | -3/Research | Core integrity fell below 50% 3908 | -3/Research | Lost 12 parts (2p4n5u1w) 3939 | -3/Research | Core integrity fell below 20% 3961 | -3/Research | Destroyed by S-43 Plague with Heavy Machine Gun Last Messages --------------- 03930_ Field strength at 88. 03931_ Field strength at 82. 03932_ Door malfunctions. 03932_ Field strength at 76. 03933_ Field strength at 70. 03934_ Field strength at 64. 03935_ K-01 Serf destroyed. 03935_ Field strength at 47. 03936_ Field strength at 41. 03937_ Field strength at 35. 03938_ Penetrated by Slug. 03938_ Field strength at 10. 03938_ Stasis field depleted. 03938_ Imp. System Shield destroyed. 03940_ Knocked back. 03948_ System corrupted: Substantial component data lost. 03954_ ALERT: Potential suspicious activity detected, Programmers report to Research Zone 4V. Map ----- +----------------------------------------------------+ | | | | | | | | | | | | | | | | | | | | | | | | | | | | | | | | | | | | | | | | | | | | | | | ????????????????###################??????????????? | | ????????????????# #??????????????? | | ????????????????# @ #??????????????? | | ????????????????# #??????????????? | | #######??####???# [ #??????????????? | | ####T ##### #??????????????? | | + s s #??????????????? | | # #s] = #??????????????? | | # ##############+####??????????????? | | # ?????????????????????? | | / ?????????????????????? | | # ?????????????????????? | | / ?????????????????????? | | # ################??????????????????????? | | # #?????????????????????????????????????? | | # #?????????????????????????????????????? | | # #?????????????????????????????????????? | | ####### #?????????????????????????????????????? | | #?????# #?????????????????????????????????????? | | #?????# #?????????????????????????????????????? | | #?????# #?????????????????????????????????????? | | ###???# #?????????????????????????????????????? | | #???# ###########???????????????????????????? | | ##### ! ???????????????????????????? | | ??????????????????????????? | | ??????????????????????????? | | ! ##### ??????????????????????????? | +----------------------------------------------------+ Best States ------------- Heat Dissipation 71 Energy Generation 25 Energy Capacity 290 Matter Stores 300 Matter Capacity 300 Sight Range 22 Robot Scan Range 15 Terrain Scan Range 16 Terrain Scan Density 210 Power Amplification 30 Armor Coverage 150 Resistance: TH 25 Evasion (%) 65 Targeting Accuracy 24 Recoil Reduction 2 Offensive Hacking 44 Defensive Hacking 26 Item Schematics ----------------- Hacking Suite | -9/Materials | Scanalyzed Combat Drone Bay | -7/Data Miner | Free Lgt. Regenerative Plating | -7/Data Miner | Free Cld. Cesium-ion Thruster | -7/Data Miner | Free Exp. Power Shielding | -7/Data Miner | Free Imp. Heavy Laser | -7/Data Miner | Free Field Propulsion Drive | -7/Data Miner | Free Imp. Recalibrator | -7/Data Miner | Free Mass Driver | -7/Data Miner | Free Hvy. Plasma Cannon | -7/Data Miner | Free Lrn. Proton Cannon | -7/Data Miner | Free Imp. System Shield | -4/Factory | Scanalyzed Robot Schematics ------------------ R-10 Processor | -7/Data Miner | Free G-50 Soldier | -7/Data Miner | Free H-55 Commando | -7/Data Miner | Free L-41 Fighter | -7/Data Miner | Free A-15 Conveyor | -7/Data Miner | Free Fabricated ------------ Cld. Cesium-ion Thruster | x1 | -5/Factory Repaired ---------- Imp. Grenade Launcher | 65% | -7/Factory Studied --------- Lgt. Cannon | -9/Materials | Hacked Cesium-ion Thruster | -7/Factory | Hacked Lgt. Nuclear Core | -7/Factory | Hacked Xenon Bombardment Thruster | -6/Factory | Hacked Mic. Nuclear Core | -5/Factory | Hacked Nuclear Pulse Thruster | -5/Factory | Hacked Hyp. Gauss Cannon | -5/Factory | Hacked Hvy. Missile Launcher | -5/Factory | Hacked Gauss Cannon | -5/Factory | Hacked Nuclear Pulse Array | -4/Factory | Hacked Field Propulsion Drive | -4/Factory | Hacked Alien Tech Used ----------------- None Achievements -------------- None Challenges ------------ None Game ------ Seed OmegaLaunchInterpreter Manual? 0 Play Time 01:09:22 Cumulative 210.6 hours Start 2026.06.21 @ 18:58:46 End 2026.06.21 @ 20:16:44 Sessions 1 Manual Loads 0 Difficulty Rogue Special Mode None Game No. 289 Rogue 289 Adventurer 0 Explorer 0 Win Type - Total 2 Types 1/0/0/1/0/0/0/0/0/0 Lore% 74 Gallery% 62 Achievement% 49 Wizard Run 0 Options --------- Layout 2 ASCII 0 Keyboard 0 Movement Mouse Keybinds 0 Fullscreen 1 Font 24/Smallcaps Map View 50x44 Zoom Use 0% Tactical HUD 1 Map Filters NONE Filters NONE Steam 1 RUN: 5c06d4d7-1875-47bb-a34c-1c83372a5cfd